bitfinex-derivatives/quotes_BNBF0:USTF0_20250316
["timestamp","ask_amount","ask_price","bid_price","bid_amount"]
[1742134751317,0.578,599.22,598.51,0.40361416]
[1742134751619,0.578,599.22,598.36,1.469]
[1742134751816,0.578,599.22,598.37,2.10153694]
[1742134752011,0.578,599.22,598.38,2.10153694]
[1742134752213,0.578,599.22,598.36,1.469]
[1742134752214,0.578,599.22,598.39,2.10153694]
[1742134752414,0.578,599.22,598.4,2.10153694]
[1742134752612,0.578,599.22,598.41,2.10153694]
[1742134752814,0.578,599.22,598.42,2.10153694]
[1742134753012,0.578,599.22,598.43,2.10153694]
[1742134753216,0.578,599.22,598.44,2.10153694]
[1742134753517,0.578,599.22,598.45,0.40366981]
[1742134753819,0.578,599.22,598.46,2.10232108]
[1742134754118,0.578,599.22,598.47,2.1023146]
[1742134754320,0.578,599.22,598.48,0.40366981]
[1742134754618,0.578,599.22,598.49,0.40366981]
[1742134754819,0.578,599.22,598.5,0.40366981]
[1742134755119,0.578,599.22,598.51,0.40366981]
[1742134755320,0.578,599.22,598.52,0.40366981]
[1742134755525,0.578,599.22,598.53,0.40366981]
[1742134755715,0.578,599.22,598.54,0.40366981]
[1742134755919,0.578,599.22,598.55,0.40366981]
[1742134756119,0.578,599.22,598.56,0.40366981]
[1742134756322,0.578,599.22,598.36,1.469]
[1742134756517,0.578,599.22,598.37,4.08999109]
[1742134756729,0.578,599.22,598.38,2.10071377]
[1742134756923,0.578,599.22,598.38,1.04918129]
[1742134757124,2.51254831,600.67,598.39,0.30689415]
[1742134757421,0.33302251,600.56,598.4,2.10062373]
[1742134757722,0.33302251,600.56,598.41,0.30689415]
[1742134757923,2.51254831,600.22,598.41,0.30689415]
[1742134758124,0.33322225,600.2,598.42,2.1012897]
[1742134758323,0.33322225,600.2,598.43,0.30689415]
[1742134758523,0.33322225,600.2,598.44,2.10133913]
[1742134758823,0.33322225,600.2,598.45,2.40823328]
[1742134759026,0.33322225,600.2,598.46,1.35633623]
[1742134759226,0.33322225,600.2,598.47,0.7104954]
[1742134759520,0.33322225,600.2,598.48,0.71041949]
[1742134759823,0.91022225,600.2,598.49,0.40352534]
[1742134760023,0.91022225,600.2,598.5,0.40352534]
[1742134760223,0.91022225,600.2,598.51,0.40352534]
[1742134760421,0.91022225,600.2,598.52,0.40352534]
[1742134760724,0.91022225,600.2,598.53,0.40352534]
[1742134760926,0.91022225,600.2,598.4,0.645]
[1742134761127,0.91022225,600.2,598.41,2.40727921]
[1742134761327,0.91022225,600.2,598.42,2.40727921]
[1742134761528,0.91022225,600.2,598.43,2.40727921]
[1742134761726,0.91022225,600.2,598.44,2.10042579]
[1742134761919,0.91022225,600.2,598.45,1.05142592]
[1742134762122,0.91022225,600.2,598.46,1.04876509]
[1742134762323,0.91022225,600.2,598.47,3.2837099]
[1742134762523,0.91022225,600.2,598.48,2.09996559]
[1742134762723,0.91022225,600.2,598.49,2.09996559]
[1742134762921,0.91022225,600.2,598.5,2.09996559]
[1742134763126,0.91022225,600.2,598.51,2.09996559]
[1742134763325,0.91022225,600.2,598.52,2.09996559]
[1742134763525,0.91022225,600.2,598.53,2.09996559]
[1742134767130,0.91022225,600.2,598.54,2.09995211]
[1742134767329,0.91022225,600.2,598.55,2.09995211]
[1742134767540,0.91022225,600.2,598.56,0.40333966]
[1742134767729,0.91022225,600.2,598.57,2.10013781]
[1742134767926,0.91022225,600.2,598.58,0.40333966]
[1742134768228,0.91022225,600.2,598.59,0.40333966]
[1742134768423,0.91022225,600.2,598.6,0.40333966]
[1742134768632,0.91022225,600.2,598.61,0.40333966]
[1742134768831,0.91022225,600.2,598.62,0.40333966]
[1742134769033,0.91022225,600.2,598.63,0.40333966]
[1742134769232,0.91022225,600.2,598.55,1.418]
[1742134769432,0.91022225,600.2,598.56,0.40350492]
[1742134769635,0.91022225,600.2,598.57,0.40350492]
[1742134769826,0.91022225,600.2,598.58,0.40350492]
[1742134770029,0.91022225,600.2,598.59,0.40350492]
[1742134770329,0.91022225,600.2,598.6,0.40350492]
[1742134770529,0.91022225,600.2,598.61,0.40350492]
[1742134770731,0.91022225,600.2,598.55,1.418]
[1742134771034,0.91022225,600.2,598.56,0.40359029]
[1742134771332,0.91022225,600.2,598.55,1.418]
[1742134771333,0.91022225,600.2,598.57,0.40359029]
[1742134771531,0.91022225,600.2,598.58,0.40359029]
[1742134771833,0.91022225,600.2,598.59,0.40359029]
[1742134772031,0.91022225,600.2,598.6,0.40359029]
[1742134772227,0.91022225,600.2,598.61,0.40359029]
[1742134772430,0.91022225,600.2,598.62,0.40359029]
[1742134772732,0.91022225,600.2,598.63,1.04759029]
[1742134772933,0.91022225,600.2,598.64,0.40359029]
[1742134773439,0.91022225,600.2,598.64,1.04977383]
[1742134773737,0.91022225,600.2,598.65,2.17859029]
[1742134773929,0.91022225,600.2,598.66,0.40359029]
[1742134776534,0.91022225,600.2,598.67,0.40415632]
[1742134776734,0.91022225,600.2,598.65,1.775]
[1742134776735,0.91022225,600.2,598.68,0.4041235]
[1742134776937,0.91022225,600.2,598.65,1.775]
[1742134777233,0.91022225,600.2,598.66,0.40412969]
[1742134777434,2.51254831,600.17,598.67,0.40412969]
[1742134777634,0.33325002,600.15,598.68,0.40412969]
[1742134777834,0.33325002,600.15,598.65,1.775]
[1742134778035,0.33325002,600.15,598.66,0.71103059]
[1742134778234,0.33325002,600.15,598.67,0.71103059]
[1742134778539,0.33325002,600.15,598.68,0.71115067]
[1742134778835,0.33325002,600.15,598.69,0.71115067]
[1742134779035,0.33325002,600.15,598.7,0.40439039]
[1742134779235,0.33325002,600.15,598.68,1.265]
[1742134779435,0.33325002,600.15,598.69,0.40455504]
[1742134779637,0.33325002,600.15,598.68,1.265]
[1742134779837,0.33325002,600.15,598.69,0.40458073]
[1742134780138,2.51254831,600.07,598.68,1.265]
[1742134780334,0.33330555,600.05,598.69,0.40455931]
[1742134780536,0.33330555,600.05,598.68,1.265]
[1742134783240,2.51254831,600.02,598.68,1.265]
[1742134783442,0.33333333,600.0,598.68,1.265]
[1742134787638,0.578,599.99,598.68,1.265]
[1742134787837,0.33335,599.97,598.68,1.265]
[1742134793848,2.51254831,599.77,598.68,1.265]
[1742134794145,0.33347228,599.75,598.68,1.265]
[1742134800349,0.33347228,599.75,598.68,2.501]
[1742134804256,0.33347228,599.75,598.68,3.144]
[1742134806060,0.578,599.74,598.68,3.144]
[1742134806258,0.33348896,599.72,598.68,3.144]
[1742134810060,0.33348896,599.72,598.68,4.943]
[1742134825775,0.33348896,599.72,598.68,6.654]
[1742134829679,0.33348896,599.72,598.69,1.06448538]
[1742134829875,0.33348896,599.72,598.7,1.06448538]
[1742134830084,0.33348896,599.72,598.71,1.06448084]
[1742134830276,0.33348896,599.72,598.72,1.06448084]
[1742134830476,0.33348896,599.72,598.73,1.06448084]
[1742134830678,0.33348896,599.72,598.74,1.06448084]
[1742134830975,0.33348896,599.72,598.68,3.51]
[1742134831176,0.33348896,599.72,598.69,1.46857648]
[1742134831478,0.33348896,599.72,598.7,1.46857648]
[1742134831678,0.33348896,599.72,598.71,1.46857648]
[1742134831979,0.33348896,599.72,598.72,1.46857648]
[1742134832172,0.33348896,599.72,598.73,1.46857648]
[1742134832371,0.33348896,599.72,598.71,1.19863165]
[1742134832372,0.33348896,599.72,598.74,1.06443164]
[1742134832581,0.33348896,599.72,598.75,1.46856709]
[1742134832778,0.33348896,599.72,598.76,1.06443164]
[1742134832979,0.33348896,599.72,598.76,1.751]
[1742134833580,0.33348896,599.72,598.77,0.643]
[1742134833882,0.33348896,599.72,598.77,2.299]
[1742134839678,0.579,599.71,598.77,2.299]
[1742134840582,0.33350564,599.69,598.77,2.299]
[1742134847692,0.33350564,599.69,598.78,1.46937651]
[1742134847891,0.33350564,599.69,598.79,1.46937651]
[1742134848093,0.33350564,599.69,598.8,1.46937651]
[1742134848291,0.33350564,599.69,598.77,2.299]
[1742134848292,0.33350564,599.69,598.81,2.66845607]
[1742134848494,0.33350564,599.69,598.82,1.06501265]
[1742134848690,0.33350564,599.69,598.81,1.19907956]
[1742134848889,0.33350564,599.69,598.82,1.06460443]
[1742134849096,0.33350564,599.69,598.83,3.17188937]
[1742134849394,0.579,599.71,598.84,3.81850872]
[1742134849591,0.579,599.71,598.85,4.12507841]
[1742134849794,0.579,599.71,598.86,3.81850872]
[1742134849995,0.579,599.71,598.87,3.81850872]
[1742134850192,0.579,599.71,598.88,3.81850872]
[1742134850399,0.579,599.71,598.89,3.81625073]
[1742134850692,0.579,599.71,598.9,3.81625073]
[1742134850896,0.579,599.71,598.91,3.17100716]
[1742134851091,0.579,599.71,598.92,3.81296029]
[1742134851298,0.579,599.71,598.93,3.16762293]
[1742134851498,0.579,599.71,598.94,1.46783274]
[1742134851698,0.579,599.71,598.95,1.46783274]
[1742134851898,0.579,599.71,598.96,1.46783274]
[1742134852100,0.579,599.71,598.97,2.66501164]
[1742134852300,0.579,599.71,598.98,1.46783274]
[1742134852600,0.579,599.71,598.77,2.299]
[1742134852802,0.579,599.71,598.78,3.80576843]
[1742134852999,0.579,599.71,598.79,3.80576843]
[1742134853199,0.579,599.71,598.8,3.80576843]
[1742134853399,0.579,599.71,598.81,3.80576843]
[1742134853701,2.51254831,601.1,598.82,3.80576843]
[1742134853903,0.33278423,600.99,598.83,3.80576843]
[1742134854102,0.33278423,600.99,598.84,3.80576843]
[1742134854298,0.33278423,600.99,598.85,3.80576843]
[1742134854499,0.33278423,600.99,598.86,3.80496868]
[1742134854700,0.29024792,600.98,598.87,3.80355378]
[1742134854903,0.33284516,600.88,598.88,3.80355378]
[1742134855100,0.33284516,600.88,598.89,1.46341927]
[1742134855297,0.33284516,600.88,598.9,1.46341927]
[1742134855501,0.33284516,600.88,598.91,1.46341927]
[1742134855701,0.33284516,600.88,598.92,1.46341927]
[1742134855901,0.33284516,600.88,598.93,1.46341927]
[1742134856103,0.33284516,600.88,598.94,1.46341927]
[1742134856399,0.33284516,600.88,598.95,1.46341927]
[1742134856604,0.578,600.87,598.96,1.46341927]
[1742134856805,0.33286177,600.85,598.95,1.392]
[1742134857306,0.33286177,600.85,598.96,1.46109962]
[1742134857506,0.33286177,600.85,598.95,1.392]
[1742134857708,0.29024913,600.84,598.95,1.392]
[1742134858306,0.33287839,600.82,598.96,1.4610914]
[1742134858501,0.33287839,600.82,598.95,1.392]
[1742134858701,0.33287839,600.82,598.96,1.46068442]
[1742134858902,0.33287839,600.82,598.97,1.46068998]
[1742134859105,0.33287839,600.82,598.98,1.46064917]
[1742134859307,0.33287839,600.82,598.95,1.392]
[1742134859308,2.8454267,600.82,598.95,1.392]
[1742134859509,2.8454267,600.82,598.96,1.46027449]
[1742134859708,2.8454267,600.82,598.97,1.46027816]
[1742134859902,2.8454267,600.82,598.98,1.46025757]
[1742134860109,2.8454267,600.82,598.99,0.40177563]
[1742134860309,2.8454267,600.82,598.95,1.392]
[1742134860608,2.8454267,600.82,598.96,0.4017933]
[1742134860906,0.33287839,600.82,598.97,0.4017852]
[1742134861111,0.33287839,600.82,598.95,1.392]
[1742134861308,0.33287839,600.82,598.96,1.46027008]
[1742134861506,0.33287839,600.82,598.97,1.46027008]
[1742134861701,0.33287839,600.82,598.98,1.45995206]
[1742134861905,0.33287839,600.82,598.99,1.45994291]
[1742134862105,0.33287839,600.82,599.0,0.40177743]
[1742134862304,0.33287839,600.82,598.95,1.392]
[1742134862510,0.33287839,600.82,598.96,1.45940386]
[1742134862711,2.8454267,600.82,598.97,1.45940386]
[1742134862903,2.8454267,600.82,598.98,1.45940386]
[1742134863105,2.8454267,600.82,598.99,1.45940386]
[1742134863407,2.8454267,600.82,599.0,0.40152988]
[1742134863610,2.8454267,600.82,599.01,0.40152988]
[1742134863808,0.29023703,600.81,598.98,1.838]
[1742134864011,0.33289502,600.79,599.01,1.697]
[1742134864408,0.33289502,600.79,599.02,0.642]
[1742134866818,0.29025397,600.78,599.02,0.642]
[1742134867115,2.51254831,600.66,599.02,0.642]
[1742134867317,0.33297815,600.64,599.02,0.642]
[1742134872420,2.51254831,600.57,599.02,0.642]
[1742134872718,0.33302805,600.55,599.02,0.642]
[1742134874522,2.51254831,600.41,599.02,0.642]
[1742134874722,0.3331168,600.39,599.02,0.642]
[1742134877825,0.3331168,600.39,599.02,2.276]
[1742134879723,0.3331168,600.39,599.03,1.46039404]
[1742134879923,0.3331168,600.39,599.04,1.46039404]
[1742134880123,0.3331168,600.39,599.05,1.46039404]
[1742134880321,0.3331168,600.39,599.06,1.46039404]
[1742134880521,0.3331168,600.39,599.02,1.634]
[1742134880724,0.3331168,600.39,599.03,1.46028147]
[1742134881023,0.3331168,600.39,599.04,1.46028198]
[1742134881323,0.3331168,600.39,599.05,1.46028198]
[1742134881524,0.3331168,600.39,599.06,1.46028198]
[1742134881825,0.578,600.38,599.06,1.168]
[1742134882021,0.578,600.38,599.07,1.76681558]
[1742134882326,0.578,600.38,599.08,1.76659532]
[1742134882522,0.578,600.38,599.09,2.65180757]
[1742134882824,0.33313345,600.36,599.1,1.46006556]
[1742134883025,0.33313345,600.36,599.11,1.46006556]
[1742134883223,0.33313345,600.36,599.12,1.46006556]
[1742134883425,0.33313345,600.36,599.13,1.46006556]
[1742134883618,0.33313345,600.36,599.14,1.46006556]
[1742134883823,0.33313345,600.36,599.08,0.641]
[1742134884120,0.33313345,600.36,599.09,1.46013879]
[1742134884322,0.33313345,600.36,599.1,1.46013879]
[1742134884620,0.33313345,600.36,599.1,1.19155279]
[1742134885024,0.33313345,600.36,599.08,0.641]
[1742134888218,0.33313345,600.36,599.09,1.53]
[1742134895932,0.33313345,600.36,599.1,1.599]
[1742134896427,0.33313345,600.36,599.11,1.74]
[1742134900328,0.33313345,600.36,599.12,0.64]
[1742134902131,0.33313345,600.36,599.13,1.46475167]
[1742134902330,0.33313345,600.36,599.14,1.46475167]
[1742134902532,0.33313345,600.36,599.15,1.46475167]
[1742134902735,0.33313345,600.36,599.16,1.46475167]
[1742134902935,0.33313345,600.36,599.17,1.46475167]
[1742134903134,0.33313345,600.36,599.18,1.46475167]
[1742134903435,0.33313345,600.36,599.19,2.66010958]
[1742134903637,0.33313345,600.36,599.2,1.46475167]
[1742134903930,0.33313345,600.36,599.21,1.46475167]
[1742134904136,0.33313345,600.36,599.22,0.40288505]
[1742134904337,0.33313345,600.36,599.23,1.46469562]
[1742134904530,0.33313345,600.36,599.24,1.46469562]
[1742134904735,0.33313345,600.36,599.25,1.46469562]
[1742134904933,0.33313345,600.36,599.26,1.46469562]
[1742134905134,0.33313345,600.36,599.27,1.46469562]
[1742134905335,0.579,600.35,599.28,1.46469562]
[1742134905532,0.579,600.35,599.29,1.46469562]
[1742134905837,0.33314455,600.34,599.3,1.46469562]
[1742134906032,0.33314455,600.34,599.31,1.46469562]
[1742134906239,0.33314455,600.34,599.32,1.06181057]
[1742134906539,0.33314455,600.34,599.33,1.06181057]
[1742134906838,0.33314455,600.34,599.34,1.06285072]
[1742134907138,0.33314455,600.34,599.33,1.19535791]
[1742134907337,0.33314455,600.34,599.34,1.06328285]
[1742134907538,0.33314455,600.34,599.35,1.06328285]
[1742134907738,0.33314455,600.34,599.12,0.64]
[1742134907935,0.33314455,600.34,599.13,3.81380552]
[1742134908138,0.33314455,600.34,599.14,3.81380552]
[1742134908334,0.33314455,600.34,599.15,3.81366629]
[1742134908639,0.33314455,600.34,599.13,1.19716496]
[1742134908640,0.33314455,600.34,599.16,4.36516438]
[1742134908839,0.33314455,600.34,599.17,3.16799942]
[1742134909040,0.33314455,600.34,599.18,3.16799942]
[1742134909240,0.33314455,600.34,599.19,3.16799942]
[1742134909438,0.33314455,600.34,599.2,4.36516438]
[1742134909738,0.33314455,600.34,599.21,1.46676442]
[1742134909935,0.33314455,600.34,599.22,1.46676442]
[1742134910137,0.33314455,600.34,599.23,1.46676442]
[1742134910334,0.33314455,600.34,599.24,1.46676442]
[1742134910541,0.33314455,600.34,599.25,1.46676442]
[1742134910835,0.33314455,600.34,599.26,2.66392938]
[1742134911035,0.33314455,600.34,599.27,1.46676442]
[1742134911238,0.33314455,600.34,599.28,1.46676442]
[1742134911439,0.33314455,600.34,599.29,1.46676442]
[1742134911636,0.33314455,600.34,599.3,1.46676442]
[1742134911841,0.33314455,600.34,599.31,1.46676442]
[1742134912136,0.33314455,600.34,599.32,1.06327187]
[1742134912336,0.33314455,600.34,599.33,1.06327187]
[1742134912538,0.33314455,600.34,599.12,0.64]
[1742134912735,0.33314455,600.34,599.13,3.81122575]
[1742134912936,0.33314455,600.34,599.14,3.81122575]
[1742134913136,0.33314455,600.34,599.15,4.11769126]
[1742134913442,0.33314455,600.34,599.14,1.19635536]
[1742134913443,0.33314455,600.34,599.16,3.81122575]
[1742134913743,0.33314455,600.34,599.17,3.81122575]
[1742134914044,0.33314455,600.34,599.18,3.81122575]
[1742134914243,0.33314455,600.34,599.19,3.16591275]
[1742134914443,0.33314455,600.34,599.2,3.16591275]
[1742134914643,0.33314455,600.34,599.21,1.46582577]
[1742134914843,0.33314455,600.34,599.22,1.46582577]
[1742134915142,0.33314455,600.34,599.23,1.46582577]
[1742134915342,0.33314455,600.34,599.24,1.46582577]
[1742134915536,0.33314455,600.34,599.25,1.46582577]
[1742134915735,0.33314455,600.34,599.26,1.06255436]
[1742134915941,0.33314455,600.34,599.12,0.64]
[1742134916135,0.33314455,600.34,599.13,4.11641069]
[1742134916337,0.33314455,600.34,599.14,3.06824261]
[1742134916545,0.33314455,600.34,599.15,3.80982482]
[1742134916740,0.33314455,600.34,599.16,3.80982482]
[1742134916941,0.33314455,600.34,599.17,4.11631689]
[1742134917242,0.33314455,600.34,599.18,3.80982482]
[1742134917442,0.33314455,600.34,599.19,3.16482643]
[1742134917743,0.33314455,600.34,599.2,4.36070548]
[1742134917946,0.33314455,600.34,599.21,3.16482643]
[1742134918145,0.33314455,600.34,599.22,3.16398454]
[1742134918342,0.33314455,600.34,599.23,1.46492347]
[1742134918541,0.33314455,600.34,599.24,1.46492347]
[1742134918742,0.33314455,600.34,599.25,1.46492347]
[1742134918937,0.33314455,600.34,599.26,1.46492347]
[1742134919137,0.33314455,600.34,599.27,1.06191316]
[1742134919444,0.33314455,600.34,599.24,1.19587905]
[1742134919445,0.33314455,600.34,599.28,1.06191316]
[1742134919742,0.33314455,600.34,599.16,1.355]
[1742134919943,0.33314455,600.34,599.17,3.80837673]
[1742134920145,0.33314455,600.34,599.18,3.16356634]
[1742134920341,0.33314455,600.34,599.19,1.46473001]
[1742134920542,0.33314455,600.34,599.2,1.46473001]
[1742134920742,0.33314455,600.34,599.21,1.46473001]
[1742134920937,0.33314455,600.34,599.22,2.66023841]
[1742134921142,0.33314455,600.34,599.23,1.46473001]
[1742134921345,0.33314455,600.34,599.22,1.1955084]
[1742134921644,0.33314455,600.34,599.16,1.355]
[1742134921843,0.33314455,600.34,599.17,1.46482366]
[1742134922043,0.33314455,600.34,599.18,1.46482366]
[1742134922243,0.33314455,600.34,599.19,1.46482366]
[1742134922445,0.33314455,600.34,599.2,1.46482366]
[1742134922639,0.33314455,600.34,599.21,1.46482366]
[1742134922843,0.33314455,600.34,599.22,1.06184349]
[1742134923044,0.33314455,600.34,599.16,1.355]
[1742134923345,0.33314455,600.34,599.17,1.46472392]
[1742134923540,0.33314455,600.34,599.18,1.46472392]
[1742134923741,0.33314455,600.34,599.19,1.46472392]
[1742134923944,0.33314455,600.34,599.2,1.46472365]
[1742134924141,0.33314455,600.34,599.21,1.06177374]
[1742134924343,0.33314455,600.34,599.22,1.06177374]
[1742134924543,0.33314455,600.34,599.21,1.452]
[1742134924744,0.33314455,600.34,599.22,1.06174392]
[1742134925045,0.33314455,600.34,599.21,1.452]
[1742134925245,0.33314455,600.34,599.22,1.06174438]
[1742134925441,0.33314455,600.34,599.21,1.452]
[1742134925746,0.33314455,600.34,599.22,1.06174912]
[1742134925946,0.33314455,600.34,599.21,1.452]
[1742134926942,0.33314455,600.34,599.22,0.639]
[1742134930944,0.33314455,600.34,599.23,1.457]
[1742134932149,0.33314455,600.34,599.24,1.06212536]
[1742134932352,0.33314455,600.34,599.25,1.06212536]
[1742134932550,0.33314455,600.34,599.23,1.457]
[1742134932751,0.579,600.33,599.24,1.46518381]
[1742134933050,0.33315565,600.32,599.25,1.06211239]
[1742134933252,0.33315565,600.32,599.26,1.0623148]
[1742134933552,0.33315565,600.32,599.27,1.06230907]
[1742134933751,0.33315565,600.32,599.23,1.457]
[1742134933951,0.33315565,600.32,599.24,1.46546296]
[1742134934150,0.33315565,600.32,599.25,1.46546296]
[1742134934352,0.33315565,600.32,599.26,1.46546296]
[1742134934548,0.33315565,600.32,599.27,1.06231081]
[1742134934753,0.33315565,600.32,599.28,1.06253791]
[1742134934952,0.33315565,600.32,599.29,1.06250588]
[1742134935147,0.33315565,600.32,599.3,1.06260014]
[1742134935347,0.33315565,600.32,599.23,1.457]
[1742134935648,0.33315565,600.32,599.24,1.46588209]
[1742134935853,0.33315565,600.32,599.25,1.46588209]
[1742134936055,0.33315565,600.32,599.26,1.46588209]
[1742134936251,0.33315565,600.32,599.27,1.46588209]
[1742134936453,0.33315565,600.32,599.28,1.46588209]
[1742134936753,0.33315565,600.32,599.29,1.46591732]
[1742134936954,0.33315565,600.32,599.3,1.06259991]
[1742134937152,0.33315565,600.32,599.31,1.06259991]
[1742134937354,0.33315565,600.32,599.23,1.457]
[1742134937657,0.33315565,600.32,599.24,3.16627204]
[1742134937853,0.33315565,600.32,599.25,1.46599283]
[1742134938157,0.33315565,600.32,599.23,1.457]
[1742134938158,0.33315565,600.32,599.26,2.66251203]
[1742134938359,0.33315565,600.32,599.27,1.46599283]
[1742134938657,0.33315565,600.32,599.28,2.66251203]
[1742134938853,0.33315565,600.32,599.29,1.46599283]
[1742134939055,0.33315565,600.32,599.3,1.46599283]
[1742134939253,0.33315565,600.32,599.31,3.16599961]
[1742134939460,0.33315565,600.32,599.32,3.16599961]
[1742134939658,0.33315565,600.32,599.33,1.46599283]
[1742134939858,0.33315565,600.32,599.34,3.81107213]
[1742134940059,0.33315565,600.32,599.35,3.81107213]
[1742134940259,0.33315565,600.32,599.36,3.81086597]
[1742134940454,0.33315565,600.32,599.37,3.16589885]
[1742134940652,0.33315565,600.32,599.38,3.81089425]
[1742134940853,0.33315565,600.32,599.39,3.16589885]
[1742134941058,0.33315565,600.32,599.4,1.46599283]
[1742134941257,0.33315565,600.32,599.41,0.40331833]
[1742134941759,0.33315565,600.32,599.41,1.04231833]
[1742134941961,0.33315565,600.32,599.41,0.639]
[1742134942959,0.33315565,600.32,599.42,1.06173532]
[1742134943458,0.33315565,600.32,599.41,0.639]
[1742134943859,0.33315565,600.32,599.42,0.40288568]
[1742134944159,0.33315565,600.32,599.43,0.40288568]
[1742134944660,0.33315565,600.32,599.44,1.464477]
[1742134944858,0.33315565,600.32,599.43,1.493]
[1742134945257,0.33315565,600.32,599.44,0.40282146]
[1742134945559,0.33315565,600.32,599.45,0.40282146]
[1742134945759,0.33315565,600.32,599.46,1.46437975]
[1742134945959,0.33315565,600.32,599.47,1.46437975]
[1742134946154,0.33315565,600.32,599.48,1.46437975]
[1742134946360,0.33315565,600.32,599.49,1.46427286]
[1742134946559,0.33315565,600.32,599.5,1.46427286]
[1742134946752,0.33315565,600.32,599.51,1.46427286]
[1742134946955,0.33315565,600.32,599.52,1.46427286]
[1742134947158,0.33315565,600.32,599.53,1.06155829]
[1742134947359,0.33315565,600.32,599.54,1.06155829]
[1742134947561,0.33315565,600.32,599.43,1.493]
[1742134947759,0.33315565,600.32,599.44,3.16074725]
[1742134947959,0.33315565,600.32,599.45,1.46339934]
[1742134948161,0.33315565,600.32,599.46,2.65775792]
[1742134948358,0.33315565,600.32,599.47,1.46339934]
[1742134948556,0.33315565,600.32,599.48,1.46339934]
[1742134948756,0.33315565,600.32,599.49,1.46339934]
[1742134948960,0.33315565,600.32,599.5,1.46339934]
[1742134949160,0.33315565,600.32,599.51,1.46339934]
[1742134949356,0.33315565,600.32,599.52,1.46339934]
[1742134949562,0.33315565,600.32,599.53,1.46339934]
[1742134949761,0.33315565,600.32,599.54,1.06084244]
[1742134949961,0.33315565,600.32,599.55,1.06084244]
[1742134950161,0.33315565,600.32,599.43,1.493]
[1742134950362,0.33315565,600.32,599.44,3.8026992]
[1742134950661,0.33315565,600.32,599.43,1.493]
[1742134950662,0.33315565,600.32,599.45,3.15891958]
[1742134950862,0.33315565,600.32,599.46,3.80270995]
[1742134951066,0.33315565,600.32,599.47,3.15891958]
[1742134951269,0.33315565,600.32,599.48,3.15891958]
[1742134951472,0.33315565,600.32,599.49,1.4625464]
[1742134951674,0.33315565,600.32,599.5,1.46257787]
[1742134951973,0.33315565,600.32,599.51,1.46257787]
[1742134952170,0.33315565,600.32,599.52,1.46257787]
[1742134952369,0.33315565,600.32,599.53,1.46257787]
[1742134952569,0.33315565,600.32,599.52,1.19369138]
[1742134952570,0.33315565,600.32,599.54,1.46259044]
[1742134952775,0.33315565,600.32,599.55,1.46258459]
[1742134952974,0.33315565,600.32,599.56,1.46258459]
[1742134953173,0.33315565,600.32,599.57,1.06023324]
[1742134953473,0.33315565,600.32,599.58,1.0603837]
[1742134953670,0.33315565,600.32,599.59,1.0603837]
[1742134953874,0.33315565,600.32,599.43,1.493]
[1742134954074,0.33315565,600.32,599.44,3.80323]
[1742134954374,0.33315565,600.32,599.45,6.24203884]
[1742134954575,0.33315565,600.32,599.46,3.80323]
[1742134954773,0.33315565,600.32,599.47,3.80323]
[1742134954974,0.33315565,600.32,599.48,3.15935492]
[1742134955174,0.33315565,600.32,599.47,1.19380884]
[1742134955175,0.33315565,600.32,599.49,3.15935492]
[1742134955369,0.33315565,600.32,599.5,3.15935492]
[1742134955568,0.33315565,600.32,599.51,1.46275055]
[1742134955771,0.33315565,600.32,599.52,1.46275055]
[1742134955970,0.33315565,600.32,599.53,1.46275055]
[1742134956169,0.33315565,600.32,599.54,1.46275055]
[1742134956373,0.33315565,600.32,599.55,1.46266369]
[1742134956573,0.33315565,600.32,599.56,1.46266369]
[1742134956775,0.33315565,600.32,599.54,1.19380884]
[1742134956975,0.33315565,600.32,599.55,1.46266658]
[1742134957174,0.33315565,600.32,599.56,1.0603025]
[1742134957367,0.33315565,600.32,599.57,1.0603025]
[1742134957568,0.33315565,600.32,599.45,1.245]
[1742134957774,0.33315565,600.32,599.46,3.80291046]
[1742134957973,0.33315565,600.32,599.47,3.80291046]
[1742134958169,0.33315565,600.32,599.48,3.15905838]
[1742134958370,0.33315565,600.32,599.49,3.15905838]
[1742134958571,0.33315565,600.32,599.48,1.19372452]
[1742134958572,0.33315565,600.32,599.5,1.46262766]
[1742134958773,0.33315565,600.32,599.51,1.46262766]
[1742134958979,0.33315565,600.32,599.52,1.46262766]
[1742134959276,0.33315565,600.32,599.53,1.46262766]
[1742134959476,0.33315565,600.32,599.54,2.65635218]
[1742134959678,0.33315565,600.32,599.55,1.46262766]
[1742134959878,0.33315565,600.32,599.56,1.46262766]
[1742134960079,0.33315565,600.32,599.54,1.19372452]
[1742134960080,0.33315565,600.32,599.57,1.46262766]
[1742134960303,0.33315565,600.32,599.58,1.46260066]
[1742134960478,0.33315565,600.32,599.59,1.46260066]
[1742134960679,0.33315565,600.32,599.6,1.46260066]